[Event "45th FIDE Olympiad 2024"]
[Site "Budapest"]
[Date "2024.09.16"]
[Round "6.230"]
[White "Lynch, Kemp"]
[Black "Chavez, Ricardo Ernesto"]
[Result "1-0"]
[WhiteElo "1944"]
[BlackElo "2185"]
[PlyCount "97"]
[EventDate "2024.09.05"]
[EventType "team-tourn"]
[EventCountry "HUN"]
[WhiteTeam "Barbados"]
[BlackTeam "El Salvador"]
[WhiteTeamCountry "BAR"]
[BlackTeamCountry "ESA"]
[TimeControl "40/5400+30:1800+30"]

1. d4 Nf6 2. c4 c5 3. d5 e6 4. Nc3 exd5 5. cxd5 d6 6. e4 g6 7. Nf3 Bg7 8. Bf4 O-O 9. Be2 a6 10. a4 Qe7 11. Nd2 Nbd7 12. O-O Ne8 13. Re1 Ne5 14. Nc4 Rb8 15. a5 Bd7 16. Ra3 Nc7 17. Qd2 Rfe8 18. Rb3 f5 19. Rb6 Nxc4 20. Bxc4 Be5 21. Re2 Na8 22. Rb3 b5 23. axb6 Nxb6 24. Bxa6 Bxf4 25. Qxf4 g5 26. Qd2 f4 27. e5 dxe5 28. Ne4 Bf5 29. d6 Qf7 30. Nxc5 Kg7 31. h3 Qf6 32. Ne4 Bxe4 33. Rxe4 Red8 34. Rd3 Nd7 35. b4 Rb6 36. Bc4 Rdb8 37. Bb3 Ra8 38. Qc3 Raa6 39. b5 Rxb5 40. Qc7 Qf5 41. Ba4 Rb1+ 42. Kh2 Qxe4 43. Qxd7+ Kh6 44. Bc2 Rc1 45. Ra3 Rxc2 46. Rxa6 Rxf2 47. Qg4 Qg6 48. d7 Qxa6 49. d8=Q 1-0

[Event "45th FIDE Olympiad 2024"]
[Site "Budapest"]
[Date "2024.09.16"]
[Round "6.231"]
[White "Arias, Daniel"]
[Black "Edwards, Emar"]
[Result "1-0"]
[WhiteElo "2213"]
[BlackElo "1898"]
[PlyCount "103"]
[EventDate "2024.09.05"]
[EventType "team-tourn"]
[EventCountry "HUN"]
[WhiteTeam "El Salvador"]
[BlackTeam "Barbados"]
[WhiteTeamCountry "ESA"]
[BlackTeamCountry "BAR"]
[TimeControl "40/5400+30:1800+30"]

1. e4 c5 2. Nf3 d6 3. d4 cxd4 4. Nxd4 Nf6 5. Nc3 g6 6. Be3 Bg7 7. Be2 Nc6 8. Qd2 O-O 9. O-O-O d5 10. exd5 Nxd5 11. Nxd5 Qxd5 12. Nxc6 Qxc6 13. Bf3 Qa4 14. Bd5 Be6 15. Bxe6 fxe6 16. Kb1 Rac8 17. b3 Qa3 18. Bd4 Bxd4 19. Qxd4 Rxc2 20. Kxc2 Rxf2+ 21. Rd2 Qxa2+ 22. Kc3 Qa5+ 23. b4 Qa3+ 24. Kc4 b5+ 25. Kxb5 Rf5+ 26. Kc4 Rd5 27. Qc3 Qa4 28. Rxd5 Qa2+ 29. Qb3 exd5+ 30. Kc3 Qxg2 31. Rd1 e6 32. Qc2 Qf3+ 33. Kb2 Qf6+ 34. Qc3 Qf8 35. Rc1 Qf2+ 36. Rc2 Qb6 37. Qc8+ Kg7 38. Qc7+ Kf6 39. Qxb6 axb6 40. Rc6 b5 41. Kc3 g5 42. Kd4 h5 43. Rb6 g4 44. Rxb5 h4 45. Rb8 Kg7 46. Re8 g3 47. hxg3 Kf7 48. Rh8 hxg3 49. Rh3 g2 50. Rg3 g1=Q+ 51. Rxg1 Ke7 52. Ke5 1-0

[Event "45th FIDE Olympiad 2024"]
[Site "Budapest"]
[Date "2024.09.16"]
[Round "6.232"]
[White "Depradine, Lawrence"]
[Black "Guevara Ruiz, Marvin Andres"]
[Result "0-1"]
[WhiteElo "1782"]
[BlackElo "2003"]
[PlyCount "38"]
[EventDate "2024.09.05"]
[EventType "team-tourn"]
[EventCountry "HUN"]
[WhiteTeam "Barbados"]
[BlackTeam "El Salvador"]
[WhiteTeamCountry "BAR"]
[BlackTeamCountry "ESA"]
[TimeControl "40/5400+30:1800+30"]

1. c4 e6 2. Nf3 d5 3. e3 c5 4. d4 Nf6 5. Nc3 Nc6 6. a3 dxc4 7. Bxc4 a6 8. Bd3 cxd4 9. exd4 Be7 10. O-O O-O 11. Bc2 b5 12. Ne4 Qc7 13. Qd3 g6 14. Bh6 Rd8 15. Rfe1 Bb7 16. Nxf6+ Bxf6 17. Rad1 Nxd4 18. Nxd4 Rxd4 19. Qe2 Rh4 {0-} 0-1

[Event "45th FIDE Olympiad 2024"]
[Site "Budapest"]
[Date "2024.09.16"]
[Round "6.233"]
[White "Njoroge, Martin"]
[Black "Eltigani, Omar"]
[Result "0-1"]
[WhiteElo "1972"]
[BlackElo "2241"]
[PlyCount "83"]
[EventDate "2024.09.05"]
[EventType "team-tourn"]
[EventCountry "HUN"]
[WhiteTeam "Kenya"]
[BlackTeam "Sudan"]
[WhiteTeamCountry "KEN"]
[BlackTeamCountry "SUD"]
[TimeControl "40/5400+30:1800+30"]

1. e4 c5 2. Nf3 e6 3. d4 cxd4 4. Nxd4 a6 5. g3 Qb6 6. Nb3 Nf6 7. Bg2 Nc6 8. Be3 Qc7 9. a4 Ne5 10. Bf4 d6 11. N1d2 b6 12. O-O Bb7 13. Qe2 Be7 14. c4 Bc6 15. Rfc1 O-O 16. a5 bxa5 17. Nxa5 Bd7 18. h3 Rfc8 19. c5 Bb5 20. Qe3 dxc5 21. b4 Nfd7 22. bxc5 Bxc5 23. Qb3 Qa7 24. Be3 Nd3 25. Rxc5 N7xc5 26. Qa3 Qc7 27. Nac4 Rab8 28. e5 Bxc4 29. Nxc4 Nb3 30. Nd6 Nxa1 31. Nxc8 Rxc8 32. Qxd3 Nc2 33. Bf4 a5 34. Be4 h6 35. Qd2 Nb4 36. Qe2 Qc4 37. Qf3 Qc3 38. Qg4 Qe1+ 39. Kh2 Qxf2+ 40. Bg2 Rc2 41. Qxg7+ Kxg7 42. Bxh6+ {0-} 0-1

[Event "45th FIDE Olympiad 2024"]
[Site "Budapest"]
[Date "2024.09.16"]
[Round "6.234"]
[White "Nader, Obeid"]
[Black "Kanegeni, Matthew Kamau"]
[Result "1-0"]
[WhiteElo "2083"]
[BlackElo "1976"]
[PlyCount "67"]
[EventDate "2024.09.05"]
[EventType "team-tourn"]
[EventCountry "HUN"]
[WhiteTeam "Sudan"]
[BlackTeam "Kenya"]
[WhiteTeamCountry "SUD"]
[BlackTeamCountry "KEN"]
[TimeControl "40/5400+30:1800+30"]

1. d4 Nf6 2. Bf4 c5 3. e3 Qb6 4. Na3 d6 5. Nc4 Qc7 6. c3 Nbd7 7. Nf3 b5 8. Ncd2 Rb8 9. h3 g6 10. a4 a6 11. axb5 axb5 12. Qb3 c4 13. Qc2 Bg7 14. Be2 O-O 15. O-O Bb7 16. e4 Rfe8 17. d5 Nc5 18. Nd4 Ba8 19. Rxa8 Rxa8 20. Nxb5 Qd7 21. Bxc4 Reb8 22. Nd4 Qa4 23. b3 Qa2 24. Qxa2 Rxa2 25. b4 Rxd2 26. Bxd2 Nfxe4 27. Be3 Na4 28. Nc6 Rb7 29. Ba6 Rd7 30. c4 Nec3 31. b5 Ne4 32. b6 Nec5 33. Bxc5 Nxc5 34. Bc8 1-0

[Event "45th FIDE Olympiad 2024"]
[Site "Budapest"]
[Date "2024.09.16"]
[Round "6.235"]
[White "Oluka, Robert Mcligeyo"]
[Black "Hamid, Mohammed"]
[Result "1-0"]
[WhiteElo "1990"]
[BlackElo "2090"]
[PlyCount "173"]
[EventDate "2024.09.05"]
[EventType "team-tourn"]
[EventCountry "HUN"]
[WhiteTeam "Kenya"]
[BlackTeam "Sudan"]
[WhiteTeamCountry "KEN"]
[BlackTeamCountry "SUD"]
[TimeControl "40/5400+30:1800+30"]

1. e4 b6 2. d4 Bb7 3. Bd3 Nf6 4. Nc3 e6 5. a3 Be7 6. Nf3 d5 7. e5 Nfd7 8. Ne2 c5 9. c3 Nc6 10. O-O Qc7 11. Bc2 a6 12. Be3 c4 13. a4 h6 14. Nd2 g6 15. f4 Kf8 16. Kh1 h5 17. Nf3 Kg7 18. Ng5 Nf8 19. Qb1 Rb8 20. h4 Bc8 21. Ng1 b5 22. N1h3 b4 23. Qe1 Bd7 24. Qg3 bxc3 25. bxc3 Rb2 26. Rf2 Bxg5 27. Nxg5 Ne7 28. Bxg6 Nfxg6 29. Rxb2 Nf5 30. Qf2 Ngxh4 31. g3 Nxe3 32. Qxe3 Nf5 33. Qf3 f6 34. exf6+ Kxf6 35. Rab1 Bc8 36. Kg2 Qd7 37. Qe2 Qc7 38. Rb6 Re8 39. Qxh5 Rg8 40. Qe2 Re8 41. Rb8 Kg6 42. R1b7 Qxb7 43. Rxb7 Bxb7 44. g4 Nd6 45. Qe5 Ne4 46. Nxe6 Kf7 47. f5 Rg8 48. Qc7+ Kf6 49. Qxb7 Rxg4+ 50. Kf1 Nxc3 51. Nc7 Rxd4 52. Qb6+ Ke5 53. Qe6+ Kf4 54. Qh6+ Ke4 55. Qh4+ Ke5 56. Qg3+ Rf4+ 57. Qxf4+ Kxf4 58. f6 d4 59. f7 d3 60. f8=Q+ Ke3 61. Qf2+ Ke4 62. Qe1+ Ne2 63. Nxa6 Kd4 64. Nc7 c3 65. Nb5+ Kc4 66. Qh4+ Kb3 67. Nd4+ Nxd4 68. Qxd4 Kc2 69. Qe4 Kd2 70. Kf2 Kc1 71. Qxd3 c2 72. Qxc2+ Kxc2 73. a5 Kd3 74. a6 Kd4 75. a7 Ke4 76. a8=Q+ Kd4 77. Qc6 Ke5 78. Qc4 Kf5 79. Qd4 Kg5 80. Qe4 Kf6 81. Qd5 Kg6 82. Qe5 Kh6 83. Qg3 Kh5 84. Kf3 Kh6 85. Kf4 Kh7 86. Kf5 Kh8 87. Kf6 1-0

[Event "45th FIDE Olympiad 2024"]
[Site "Budapest"]
[Date "2024.09.16"]
[Round "6.236"]
[White "Eltag, Siddig"]
[Black "Wanasunia, Elvis Likoko"]
[Result "1-0"]
[WhiteElo "2138"]
[BlackElo "1942"]
[PlyCount "87"]
[EventDate "2024.09.05"]
[EventType "team-tourn"]
[EventCountry "HUN"]
[WhiteTeam "Sudan"]
[BlackTeam "Kenya"]
[WhiteTeamCountry "SUD"]
[BlackTeamCountry "KEN"]
[TimeControl "40/5400+30:1800+30"]

1. d4 d5 2. c4 e6 3. Nf3 Nf6 4. e3 Be7 5. Bd3 O-O 6. Nc3 a6 7. e4 dxe4 8. Nxe4 Nxe4 9. Bxe4 Nd7 10. O-O Nf6 11. Bc2 h6 12. Qd3 c5 13. Be3 Qc7 14. Ne5 cxd4 15. Ng4 Rd8 16. Bxd4 Kf8 17. Nxf6 Bxf6 18. Qa3+ Be7 19. Qc3 f6 20. c5 e5 21. Be3 g5 22. Bb3 Kg7 23. Qc4 Bf5 24. Qf7+ Kh8 25. Rfd1 Rf8 26. Qc4 Bg6 27. h4 Kg7 28. Rd2 Bf7 29. Qg4 f5 30. Qxf5 Be8 31. Qe4 Bg6 32. Qc4 gxh4 33. Rad1 Bf5 34. Bc2 b5 35. Qb3 Bxc2 36. Qxc2 Qc6 37. Rd6 Bxd6 38. Rxd6 Qe8 39. Bxh6+ Kg8 40. Bxf8 Kxf8 41. Qf5+ Qf7 42. Rf6 Ra7 43. c6 h3 44. Rxf7+ 1-0

[Event "45th FIDE Olympiad 2024"]
[Site "Budapest"]
[Date "2024.09.16"]
[Round "6.237"]
[White "Ahmad, Al Khatib"]
[Black "Pereira, Sergio"]
[Result "1-0"]
[WhiteElo "2302"]
[BlackElo "1988"]
[PlyCount "85"]
[EventDate "2024.09.05"]
[EventType "team-tourn"]
[EventCountry "HUN"]
[WhiteTeam "Jordan"]
[BlackTeam "Sao Tome and Principe"]
[WhiteTeamCountry "JOR"]
[BlackTeamCountry "SAO"]
[TimeControl "40/5400+30:1800+30"]

1. d4 Nf6 2. Nf3 d5 3. c4 e6 4. cxd5 exd5 5. Qc2 g6 6. Bg5 Be7 7. Nc3 c6 8. e3 Bf5 9. Bd3 Bxd3 10. Qxd3 Nbd7 11. Bh6 Bf8 12. Bf4 Be7 13. h3 Nf8 14. O-O Ne6 15. Bh2 O-O 16. Rab1 Ne8 17. b4 b5 18. a4 a6 19. e4 dxe4 20. Nxe4 bxa4 21. Ne5 Qxd4 22. Qe2 Qb6 23. Nd7 Qb5 24. Qb2 Qf5 25. Ng3 Qb5 26. Ne4 Qf5 27. Qe5 Qxe5 28. Bxe5 f6 29. Nxf8 Kxf8 30. Ba1 Nf4 31. Kh2 Nd5 32. Nc5 a3 33. Rfc1 Bd6+ 34. g3 Kf7 35. Nd3 a5 36. bxa5 Ra6 37. Rb7+ Be7 38. Bd4 a2 39. Ra7 Nec7 40. Rxa6 Nxa6 41. Rxc6 Bc5 42. Nxc5 Nxc5 43. Rxc5 1-0

[Event "45th FIDE Olympiad 2024"]
[Site "Budapest"]
[Date "2024.09.16"]
[Round "6.238"]
[White "Espirito Santo, Waldyr"]
[Black "Loay, Sameer"]
[Result "0-1"]
[WhiteElo "1926"]
[BlackElo "2194"]
[PlyCount "110"]
[EventDate "2024.09.05"]
[EventType "team-tourn"]
[EventCountry "HUN"]
[WhiteTeam "Sao Tome and Principe"]
[BlackTeam "Jordan"]
[WhiteTeamCountry "SAO"]
[BlackTeamCountry "JOR"]
[TimeControl "40/5400+30:1800+30"]

1. e4 c5 2. c3 Nf6 3. e5 Nd5 4. d4 cxd4 5. Nf3 Nc6 6. cxd4 d6 7. Bc4 Nb6 8. Bb5 dxe5 9. Nxe5 Bd7 10. Nxd7 Qxd7 11. Be3 Nd5 12. Nc3 e6 13. O-O a6 14. Bd3 Be7 15. Qg4 g6 16. Rad1 O-O 17. Bh6 Rfd8 18. Bc4 Nf6 19. Qh3 Nxd4 20. Rfe1 Qc6 21. Bf1 Rd7 22. Rd3 Rad8 23. Red1 e5 24. Kh1 b5 25. Ne2 Nxe2 26. Rxd7 Rxd7 27. Rxd7 Qxd7 28. Qxd7 Nxd7 29. Bxe2 Nc5 30. Be3 Na4 31. Bc1 Bc5 32. f3 Bd4 33. Bd1 Nc5 34. Bc2 a5 35. g3 f6 36. Kg2 Kf7 37. Kf1 Ke6 38. Ke2 f5 39. b3 Kd5 40. h3 e4 41. g4 b4 42. a3 a4 43. fxe4+ fxe4 44. axb4 Nxb3 45. Ba3 Bf6 46. Bd1 Nd4+ 47. Kf2 Nb5 48. Bc1 Bh4+ 49. Kf1 Nc3 50. Bc2 Kc4 51. Bb2 a3 52. Bxa3 e3 53. Bd1 Nxd1 54. Ke2 Kd4 55. Kxd1 Kd3 {0-} 0-1

[Event "45th FIDE Olympiad 2024"]
[Site "Budapest"]
[Date "2024.09.16"]
[Round "6.239"]
[White "Anas, Khwaira"]
[Black "Nascimento, Admilton De Ceita Do"]
[Result "1-0"]
[WhiteElo "1994"]
[BlackElo "1908"]
[PlyCount "75"]
[EventDate "2024.09.05"]
[EventType "team-tourn"]
[EventCountry "HUN"]
[WhiteTeam "Jordan"]
[BlackTeam "Sao Tome and Principe"]
[WhiteTeamCountry "JOR"]
[BlackTeamCountry "SAO"]
[TimeControl "40/5400+30:1800+30"]

1. d4 d6 2. c4 g6 3. Nc3 Bg7 4. e4 Nf6 5. h3 O-O 6. Bg5 c6 7. Bd3 e5 8. d5 Qc7 9. Nge2 h6 10. Be3 Na6 11. Qd2 Kh7 12. Rd1 Qe7 13. f3 Ne8 14. g4 Qf6 15. Ng1 Qh4+ 16. Bf2 Qe7 17. Nge2 Kg8 18. Ng3 Nf6 19. h4 Ne8 20. a3 Nc5 21. Bc2 Qf6 22. Ke2 Qe7 23. Be3 Kh7 24. b4 Na6 25. Kf2 Nac7 26. dxc6 bxc6 27. c5 Ne6 28. cxd6 Qd7 29. Nf5 gxf5 30. exf5 Nd4 31. Bxd4 f6 32. Be3 Ba6 33. g5 Bc4 34. g6+ Kg8 35. Bxh6 Qxd6 36. Qxd6 Nxd6 37. Bxg7 Nxf5 38. Bxf5 1-0

[Event "45th FIDE Olympiad 2024"]
[Site "Budapest"]
[Date "2024.09.16"]
[Round "6.240"]
[White "Lima, Osvaldo Dos Santos"]
[Black "Rakan, Dasa"]
[Result "1/2-1/2"]
[WhiteElo "1903"]
[BlackElo "1976"]
[PlyCount "106"]
[EventDate "2024.09.05"]
[EventType "team-tourn"]
[EventCountry "HUN"]
[WhiteTeam "Sao Tome and Principe"]
[BlackTeam "Jordan"]
[WhiteTeamCountry "SAO"]
[BlackTeamCountry "JOR"]
[TimeControl "40/5400+30:1800+30"]

1. c4 e6 2. Nc3 d5 3. cxd5 exd5 4. d4 c5 5. Nf3 Nc6 6. e3 Nf6 7. g3 Bg4 8. Bg2 cxd4 9. exd4 Be7 10. O-O O-O 11. h3 Bh5 12. g4 Bg6 13. a3 Rc8 14. Ne5 Bd6 15. Nxg6 hxg6 16. Be3 Re8 17. Qd3 Bb8 18. b4 Qc7 19. Rfc1 Rcd8 20. Kf1 Qh2 21. f3 Rxe3 22. Qxe3 Bf4 23. Qd3 Bxc1 24. Rxc1 Re8 25. Kf2 Qf4 26. Rd1 Ne4+ 27. Nxe4 Rxe4 28. Qd2 Qf6 29. g5 Qxd4+ 30. Qxd4 Rxd4 31. Rxd4 Nxd4 32. f4 Nc2 33. Bxd5 b6 34. Be4 Nxa3 35. Bd3 Kf8 36. Ke3 Ke7 37. b5 Ke6 38. Kd4 Kd6 39. h4 Ke6 40. Ke4 f5+ 41. gxf6 Kxf6 42. Kd4 Ke6 43. Kc3 Nxb5+ 44. Bxb5 Kf5 45. Bd3+ Kxf4 46. Bxg6 Kg4 47. h5 Kf4 48. Kb4 Ke5 49. Kb5 Kf6 50. Ka6 Kg5 51. Be8 Kg4 52. Bg6 Kg5 53. Kb5 Kh6 1/2-1/2

[Event "45th FIDE Olympiad 2024"]
[Site "Budapest"]
[Date "2024.09.16"]
[Round "6.241"]
[White "Thomas, Saah"]
[Black "Al-Ali, Hussein Ali Hussein"]
[Result "0-1"]
[WhiteElo "1939"]
[BlackElo "2122"]
[PlyCount "96"]
[EventDate "2024.09.05"]
[EventType "team-tourn"]
[EventCountry "HUN"]
[WhiteTeam "Liberia"]
[BlackTeam "Iraq"]
[WhiteTeamCountry "LBR"]
[BlackTeamCountry "IRQ"]
[TimeControl "40/5400+30:1800+30"]

1. e4 e6 2. d4 d5 3. e5 c5 4. c3 Nc6 5. f4 Bd7 6. Nf3 Nh6 7. Bd3 Rc8 8. a3 cxd4 9. cxd4 Qb6 10. Bc2 Nf5 11. Bxf5 exf5 12. O-O h6 13. Nc3 Be6 14. Qd3 Be7 15. Be3 Qa6 16. Qd2 Na5 17. Qf2 O-O 18. Nd2 f6 19. Rfd1 b6 20. Rac1 Rfd8 21. g4 fxe5 22. gxf5 exd4 23. fxe6 dxe3 24. Qg2 exd2 25. Rxd2 Nb3 26. Qg6 Bc5+ 27. Kg2 Nxd2 28. Qf7+ Kh8 29. e7 Qd3 30. exd8=Q+ Rxd8 31. Qh5 d4 32. Ne2 Qe4+ 33. Kh3 Qf3+ 34. Ng3 Qxh5+ 35. Nxh5 d3 36. b4 Nb3 37. Rd1 Be7 38. f5 d2 39. Nf4 Kg8 40. Ng6 Bf6 41. Kg4 Rc8 42. Kf3 Kf7 43. h4 Rc4 44. Ke2 Rc1 45. h5 Bg5 46. Ne5+ Kf6 47. Nd3 Nd4+ 48. Kf2 Rxd1 {0-} 0-1

[Event "45th FIDE Olympiad 2024"]
[Site "Budapest"]
[Date "2024.09.16"]
[Round "6.242"]
[White "Mohammed, Zozek Salah Mohammed"]
[Black "David, Leroy Debblay"]
[Result "1-0"]
[WhiteElo "2180"]
[BlackElo "1904"]
[PlyCount "85"]
[EventDate "2024.09.05"]
[EventType "team-tourn"]
[EventCountry "HUN"]
[WhiteTeam "Iraq"]
[BlackTeam "Liberia"]
[WhiteTeamCountry "IRQ"]
[BlackTeamCountry "LBR"]
[TimeControl "40/5400+30:1800+30"]

1. d4 d5 2. Nf3 Nf6 3. g3 c6 4. Bg2 g6 5. O-O Bg7 6. c4 O-O 7. cxd5 cxd5 8. Ne5 Nc6 9. Nxc6 bxc6 10. Nc3 Re8 11. Bf4 Nh5 12. Be3 e5 13. Rc1 exd4 14. Bxd4 Bxd4 15. Qxd4 Qb6 16. Qd2 Ba6 17. Rfd1 Rad8 18. e3 Qa5 19. b3 Nf6 20. Ne4 Qxd2 21. Nxf6+ Kh8 22. Rxd2 Re6 23. Ne4 Bc8 24. Nc5 Red6 25. Rd4 f5 26. Bf1 Kg7 27. Ba6 Kf6 28. Nb7 c5 29. Rxc5 Bxb7 30. Bxb7 Ke5 31. f4+ Ke6 32. a4 h6 33. b4 g5 34. b5 gxf4 35. exf4 h5 36. a5 h4 37. Rcxd5 Rxd5 38. Rxd5 Rg8 39. Rd3 Rg7 40. a6 hxg3 41. hxg3 Rc7 42. b6 axb6 43. a7 1-0

[Event "45th FIDE Olympiad 2024"]
[Site "Budapest"]
[Date "2024.09.16"]
[Round "6.243"]
[White "Obediah, Saah"]
[Black "Salih, Akar Ali Salih"]
[Result "0-1"]
[WhiteElo "1976"]
[BlackElo "2174"]
[PlyCount "140"]
[EventDate "2024.09.05"]
[EventType "team-tourn"]
[EventCountry "HUN"]
[WhiteTeam "Liberia"]
[BlackTeam "Iraq"]
[WhiteTeamCountry "LBR"]
[BlackTeamCountry "IRQ"]
[TimeControl "40/5400+30:1800+30"]

1. d4 g6 2. Nf3 Bg7 3. Bf4 Nf6 4. e3 d6 5. h3 O-O 6. Be2 b6 7. Nbd2 Bb7 8. c3 Nbd7 9. O-O Re8 10. Qc2 e5 11. dxe5 dxe5 12. Bh2 Qe7 13. Rfd1 a6 14. Nc4 Ne4 15. a4 Nd6 16. Qb3 Nc5 17. Qa2 Nxc4 18. Qxc4 Rad8 19. Bg3 Ne4 20. Bh2 h6 21. Qb3 Nd6 22. Ne1 Qe6 23. Qxe6 Rxe6 24. Nc2 Re7 25. Rd2 Red7 26. Rad1 Bc6 27. b3 a5 28. f3 f5 29. Kf1 Kf7 30. Bg1 Ke7 31. Bf2 Bf6 32. Be1 g5 33. Kg1 h5 34. c4 Nb7 35. Rxd7+ Rxd7 36. Rxd7+ Kxd7 37. Na3 Nc5 38. Bd1 Nd3 39. Bd2 Be7 40. Nb5 Bxb5 41. axb5 Bb4 42. Bxb4 Nxb4 43. f4 g4 44. Kh2 exf4 45. exf4 Ke6 46. Kg3 Nd3 47. Bc2 h4+ 48. Kxh4 Nxf4 49. Kg5 Ke5 50. hxg4 fxg4 51. g3 Ng2 52. Bd1 Ne3 53. Bxg4 Nxc4 54. bxc4 a4 55. Bd1 a3 56. Bb3 Kd4 57. Ba2 Kc3 58. c5 bxc5 59. Kf5 Kb2 60. Bc4 Kc3 61. Ba2 Kb2 62. Bd5 a2 63. Bxa2 Kxa2 64. g4 c4 65. g5 c3 66. g6 c2 67. g7 c1=Q 68. g8=Q+ Ka3 69. Qd5 Kb4 70. Ke6 Qc5 {0-} 0-1

[Event "45th FIDE Olympiad 2024"]
[Site "Budapest"]
[Date "2024.09.16"]
[Round "6.244"]
[White "Alothman, Ali Layth Ahmed"]
[Black "Arnold, Smith"]
[Result "1-0"]
[WhiteElo "2161"]
[BlackElo "1915"]
[PlyCount "73"]
[EventDate "2024.09.05"]
[EventType "team-tourn"]
[EventCountry "HUN"]
[WhiteTeam "Iraq"]
[BlackTeam "Liberia"]
[WhiteTeamCountry "IRQ"]
[BlackTeamCountry "LBR"]
[TimeControl "40/5400+30:1800+30"]

1. Nf3 d5 2. g3 Nf6 3. Bg2 c5 4. O-O e6 5. c4 d4 6. e3 Nc6 7. exd4 cxd4 8. d3 Be7 9. Re1 O-O 10. Na3 Bb4 11. Re2 Re8 12. Nc2 Bf8 13. Bf4 h6 14. Ne5 Bd7 15. b4 g5 16. b5 gxf4 17. bxc6 bxc6 18. Nxd4 fxg3 19. hxg3 Rc8 20. Ndxc6 Qc7 21. Rb1 Bd6 22. Rb7 Qxb7 23. Ne7+ Bxe7 24. Bxb7 Rc7 25. Bf3 Bf8 26. Qd2 Bg7 27. Qf4 Rec8 28. d4 Be8 29. Kg2 Nd7 30. Ng4 Kh7 31. Be4+ f5 32. Bxf5+ exf5 33. Rxe8 Rxe8 34. Qxc7 fxg4 35. Qxd7 Re2 36. c5 Rd2 37. c6 1-0

[Event "45th FIDE Olympiad 2024"]
[Site "Budapest"]
[Date "2024.09.16"]
[Round "6.245"]
[White "Christie, Joshua"]
[Black "Giasi, Viresh"]
[Result "1-0"]
[WhiteElo "2271"]
[BlackElo "1998"]
[PlyCount "73"]
[EventDate "2024.09.05"]
[EventType "team-tourn"]
[EventCountry "HUN"]
[WhiteTeam "Jamaica"]
[BlackTeam "Suriname"]
[WhiteTeamCountry "JAM"]
[TimeControl "40/5400+30:1800+30"]

1. d4 Nf6 2. c4 g6 3. g3 Bg7 4. Bg2 d6 5. Nc3 O-O 6. Nf3 Nbd7 7. O-O e5 8. b3 c6 9. Ba3 exd4 10. Nxd4 Nc5 11. Qd2 Ne8 12. Rad1 Qe7 13. b4 Ne6 14. Nc2 Nd8 15. b5 Bxc3 16. Qxc3 cxb5 17. cxb5 Be6 18. Bb2 f6 19. Nb4 Rc8 20. Qd4 Rc5 21. a4 Bb3 22. Nd5 Qf7 23. Rd3 Ne6 24. Qb4 Bc4 25. Rd2 N6c7 26. Ne3 b6 27. Bd4 Be6 28. Bxc5 dxc5 29. Qe4 Ng7 30. Qb7 Nce8 31. Qxf7+ Kxf7 32. Bd5 Nc7 33. Bc4 Ke7 34. Rfd1 Bc8 35. Rd6 Nge8 36. Rd8 Bb7 37. R1d7# 1-0

[Event "45th FIDE Olympiad 2024"]
[Site "Budapest"]
[Date "2024.09.16"]
[Round "6.246"]
[White "Yeung, Jason"]
[Black "Smith, Shreyas"]
[Result "0-1"]
[WhiteElo "1993"]
[BlackElo "2226"]
[PlyCount "66"]
[EventDate "2024.09.05"]
[EventType "team-tourn"]
[EventCountry "HUN"]
[WhiteTeam "Suriname"]
[BlackTeam "Jamaica"]
[BlackTeamCountry "JAM"]
[TimeControl "40/5400+30:1800+30"]

1. d4 Nf6 2. c4 g6 3. Nc3 Bg7 4. e4 d6 5. h3 O-O 6. Be3 Nc6 7. d5 Ne5 8. f4 Ned7 9. Bd3 e5 10. Nge2 exf4 11. Nxf4 Re8 12. O-O Nc5 13. Bd4 Nxd5 14. Bxg7 Nxf4 15. Rxf4 Kxg7 16. Qf3 Be6 17. Rf1 c6 18. Be2 Nd7 19. Nd1 Ne5 20. Qg3 Qa5 21. Ne3 Qxa2 22. Nf5+ Bxf5 23. exf5 Qxb2 24. Bh5 Kh8 25. fxg6 fxg6 26. Bd1 Qb6+ 27. Kh1 Qd8 28. Bc2 Qe7 29. Qf2 Kg7 30. h4 Rf8 31. h5 Rxf4 32. Qxf4 Rf8 33. h6+ Kg8 {0-} 0-1

[Event "45th FIDE Olympiad 2024"]
[Site "Budapest"]
[Date "2024.09.16"]
[Round "6.247"]
[White "Glaves, Raheem"]
[Black "Kalidjo, Imaan"]
[Result "1/2-1/2"]
[WhiteElo "2094"]
[BlackElo "1934"]
[PlyCount "109"]
[EventDate "2024.09.05"]
[EventType "team-tourn"]
[EventCountry "HUN"]
[WhiteTeam "Jamaica"]
[BlackTeam "Suriname"]
[WhiteTeamCountry "JAM"]
[TimeControl "40/5400+30:1800+30"]

1. d4 Nf6 2. c4 g6 3. Nc3 Bg7 4. e4 d6 5. Nge2 Nbd7 6. Ng3 e5 7. d5 O-O 8. h4 h5 9. Bg5 a5 10. Be2 Re8 11. Bxh5 gxh5 12. Nxh5 Nf8 13. Qf3 N8h7 14. Nd1 Bg4 15. Nxf6+ Nxf6 16. Bxf6 Bxf3 17. Bxd8 Bxd1 18. Bxc7 Bc2 19. Bxd6 Bxe4 20. Bc7 Bf5 21. Rd1 e4 22. O-O a4 23. b4 axb3 24. axb3 Ra3 25. d6 Bd7 26. b4 Bf6 27. b5 Bxh4 28. c5 Bxb5 29. d7 Rea8 30. c6 bxc6 31. Rfe1 Rd3 32. Rxd3 Bxd3 33. Rc1 Bb5 34. Rd1 Bd8 35. Bd6 Ra7 36. Bc5 Rb7 37. Rd4 Kg7 38. g4 Kf6 39. Kg2 Ke5 40. Kg3 Bd3 41. f4+ Kf6 42. Rd6+ Kg7 43. g5 Bc4 44. f5 Be6 45. fxe6 fxe6 46. Bd4+ Kf7 47. Bf6 Rb8 48. Bxd8 Rxd8 49. Rd1 Ke7 50. g6 Kf6 51. Kf4 e3 52. g7 e2 53. Rg1 e1=Q 54. Rxe1 Kxg7 55. Rxe6 1/2-1/2

[Event "45th FIDE Olympiad 2024"]
[Site "Budapest"]
[Date "2024.09.16"]
[Round "6.248"]
[White "Chashawa, Shaief"]
[Black "Shaw, Jaden"]
[Result "0-1"]
[WhiteElo "1825"]
[BlackElo "2051"]
[PlyCount "116"]
[EventDate "2024.09.05"]
[EventType "team-tourn"]
[EventCountry "HUN"]
[WhiteTeam "Suriname"]
[BlackTeam "Jamaica"]
[BlackTeamCountry "JAM"]
[TimeControl "40/5400+30:1800+30"]

1. e4 e6 2. d4 d5 3. Nc3 Bb4 4. e5 c5 5. a3 Bxc3+ 6. bxc3 Qa5 7. Qg4 Qxc3+ 8. Kd1 Ne7 9. Rb1 Qxd4+ 10. Qxd4 cxd4 11. Nf3 Nbc6 12. Bb2 Ng6 13. Bb5 Bd7 14. Bxc6 Bxc6 15. Bxd4 O-O 16. h4 Rfc8 17. h5 Ne7 18. Bc5 Nf5 19. Rb2 d4 20. Bb4 Bxf3+ 21. gxf3 Rc6 22. f4 Rac8 23. Rh3 h6 24. Rd3 Kh7 25. Kd2 b6 26. Kd1 R8c7 27. c3 dxc3 28. Rc2 Rc4 29. Rdxc3 Rd7+ 30. Kc1 Rxf4 31. Rc7 Rxc7 32. Rxc7 a5 33. Bd6 Rxf2 34. Rxf7 Rf1+ 35. Kd2 Rh1 36. Rb7 Rxh5 37. Rxb6 Rg5 38. Bc7 Rg2+ 39. Kc3 Ne3 40. Kd4 Nd5 41. Rc6 Rg4+ 42. Kc5 a4 43. Ba5 Nf4 44. Bd2 Nd3+ 45. Kd6 Rg2 46. Bc3 Nf4 47. Rc4 g5 48. Rxa4 Kg6 49. Rd4 Kf5 50. a4 Ra2 51. Rb4 Nd5 52. Rb8 Nxc3 53. Rf8+ Kg4 54. Kxe6 Rxa4 55. Rc8 Ra6+ 56. Kd7 Nd5 57. Rc5 Nf4 58. Rb5 Re6 {0-} 0-1

[Event "45th FIDE Olympiad 2024"]
[Site "Budapest"]
[Date "2024.09.16"]
[Round "6.249"]
[White "Al Maashani, Amer"]
[Black "Espinoza Solano, Jose Nahum"]
[Result "1/2-1/2"]
[WhiteElo "1979"]
[BlackElo "2156"]
[PlyCount "83"]
[EventDate "2024.09.05"]
[EventType "team-tourn"]
[EventCountry "HUN"]
[WhiteTeam "Oman"]
[BlackTeam "Nicaragua"]
[WhiteTeamCountry "OMN"]
[BlackTeamCountry "NCA"]
[TimeControl "40/5400+30:1800+30"]

1. e4 e5 2. Nf3 Nc6 3. Nc3 Nf6 4. a3 a6 5. d4 exd4 6. Nxd4 d6 7. Be2 Bd7 8. O-O Be7 9. f4 O-O 10. Bf3 Nxd4 11. Qxd4 Bc6 12. b3 Nd7 13. Nd5 Bxd5 14. Qxd5 c6 15. Qd2 Bf6 16. Rb1 Nc5 17. Qf2 Qe7 18. Re1 Rfe8 19. a4 Bc3 20. Bd2 Bxd2 21. Qxd2 Qf6 22. Rbd1 Rad8 23. g3 g5 24. Bg2 gxf4 25. gxf4 Kh8 26. Qf2 Ne6 27. Rxd6 Rxd6 28. e5 Qxf4 29. exd6 Qxf2+ 30. Kxf2 Rd8 31. Rd1 Kg7 32. b4 Kf6 33. b5 axb5 34. axb5 cxb5 35. Bxb7 Nc5 36. Bc6 Ke6 37. d7 b4 38. Rd4 Nxd7 39. Ke3 Ke7 40. Bxd7 Rxd7 41. Rxb4 Ke6 42. Rb6+ 1/2-1/2